fUST/lending_fUST_20251010
["ID","MTS","AMOUNT","RATE_DAILY","PERIOD"]
[390608763,1760103717797,500.0,0.00029469,60]
[390608764,1760103718066,500.0,0.00029469,60]
[390608765,1760103718320,500.0,0.00029469,60]
[390608766,1760103723081,500.0,0.00029469,60]
[390608767,1760103723181,500.0,0.00029469,60]
[390608768,1760103723245,500.0,0.00029469,60]
[390608769,1760103723766,501.47435549,0.00029469,60]
[390608770,1760103723830,500.0,0.00029469,60]
[390608771,1760103725843,500.0,0.00029469,60]
[390608772,1760103726305,500.0,0.00029469,60]
[390608773,1760103726522,500.0,0.00029469,60]
[390608774,1760103726810,504.74424792,0.00029469,60]
[390608775,1760103726865,500.0,0.00029469,60]
[390608776,1760103728935,500.0,0.00029469,60]
[390608777,1760103729557,500.0,0.00029469,60]
[390608778,1760103730099,500.0,0.00029469,60]
[390608779,1760103730372,500.0,0.00029469,60]
[390608780,1760103730607,501.60521197,0.00029469,60]
[390608781,1760103730883,500.0,0.00029469,60]
[390608784,1760103731240,500.0,0.00029469,60]
[390608785,1760103731501,437.10919726,0.00029469,60]
[390608787,1760103733292,623.9,0.00029469,60]
[390608788,1760103735214,500.56684885,0.00029469,60]
[390608789,1760103738567,500.0,0.00029469,60]
[390608790,1760103738821,500.0,0.00029469,60]
[390608794,1760103741177,655.4,0.00029469,60]
[390608795,1760103741422,655.4,0.00029469,60]
[390608796,1760103741648,714.73,0.00029469,60]
[390608797,1760103741798,655.4,0.00029469,60]
[390608798,1760103741900,714.73,0.00029469,60]
[390608799,1760103741950,575.72,0.00029469,60]
[390608800,1760103742000,655.4,0.00029469,60]
[390608801,1760103742158,575.72,0.00029469,60]
[390608802,1760103742212,714.73,0.00029469,60]
[390608803,1760103742264,655.4,0.00029469,60]
[390608804,1760103742412,714.73,0.00029469,60]
[390608805,1760103742459,575.72,0.00029469,60]
[390608806,1760103742553,655.4,0.00029469,60]
[390608807,1760103742671,714.73,0.00029469,60]
[390608808,1760103742723,575.72,0.00029469,60]
[390608809,1760103742796,655.4,0.00029469,60]
[390608810,1760103742925,714.73,0.00029469,60]
[390608811,1760103742981,575.72,0.00029469,60]
[390608812,1760103743076,655.4,0.00029469,60]
[390608813,1760103743183,714.73,0.00029469,60]
[390608814,1760103743233,575.72,0.00029469,60]
[390608815,1760103743334,655.4,0.00029469,60]
[390608816,1760103743434,105.96173354,0.00029469,60]
[390608820,1760103763286,1584.0,0.000156,2]
[390608827,1760103793975,297.52695221,0.00028,120]
[390608859,1760103918484,1444.0,0.00026137,120]
[390608906,1760104075715,1500.0,0.0002876,120]
[390608931,1760104176534,1363.0,0.00028767,120]
[390609214,1760104238588,-182.0,0.00015973,3]
[390609216,1760104238599,-299.61485331,0.00015973,2]
[390609218,1760104238608,-1964.33351719,0.00016367,2]
[390609220,1760104238621,-4920.56648281,0.00016367,2]
[390609222,1760104238630,-229.28641771,0.00016367,2]
[390609224,1760104238640,-1200.0,0.00016433,2]
[390609226,1760104238650,-300.0,0.00016433,2]
[390609228,1760104238660,-170.0,0.00016434,2]
[390609230,1760104238670,-300.0,0.00016434,2]
[390609232,1760104238680,-300.0,0.00016434,2]
[390609234,1760104238689,-300.0,0.00016434,2]
[390609236,1760104238699,-5000.0,0.00016437,2]
[390609238,1760104238709,-155.0,0.00016437,2]
[390609240,1760104238719,-500.0,0.00016438,2]
[390609242,1760104238732,-500.0,0.00016438,2]
[390609244,1760104238742,-500.36416598,0.00016438,2]
[390609246,1760104238752,-500.0,0.00016438,2]
[390609248,1760104238761,-500.0,0.00016438,2]
[390609250,1760104238771,-500.0,0.00016438,2]
[390609252,1760104238780,-500.41492233,0.00016438,2]
[390609254,1760104238789,-500.0,0.00016438,2]
[390609256,1760104238799,-500.0,0.00016438,2]
[390609258,1760104238808,-501.00018569,0.00016438,2]
[390609260,1760104238818,-535.38,0.00016438,2]
[390609262,1760104238827,-500.0,0.00016438,2]
[390609264,1760104238836,-500.0,0.00016438,2]
[390609266,1760104238845,-500.0,0.00016438,2]
[390609268,1760104238855,-500.0,0.00016438,2]
[390609270,1760104238864,-500.0,0.00016438,2]
[390609272,1760104238874,-500.0,0.00016438,2]
[390609274,1760104238884,-500.0,0.00016438,2]
[390609276,1760104238893,-1000.0,0.00016438,2]
[390609278,1760104238903,-5000.0,0.00016442,2]
[390609280,1760104238912,-296.08293148,0.00016467,2]
[390609282,1760104238924,-6214.91706852,0.00016467,2]
[390609284,1760104238934,-1463.82071191,0.0001648,2]
[390609286,1760104238944,-6000.0,0.000165,2]
[390609288,1760104238953,-250.0,0.00016554,2]
[390609290,1760104238963,-344.55708131,0.00016573,2]
[390609292,1760104238974,-306.0,0.000167,2]
[390609294,1760104238983,-297.8284942,0.000167,2]
[390609296,1760104238992,-153.0,0.000167,2]
[390609298,1760104239002,-189.6925741,0.000167,2]
[390609300,1760104239011,-153.0,0.000167,2]
[390609302,1760104239021,-189.6925741,0.000167,2]
[390609304,1760104239031,-153.0,0.000167,2]
[390609306,1760104239040,-500.0,0.00016712,2]
[390609308,1760104239050,-693.9,0.00016712,2]
[390609310,1760104239059,-300.0,0.00016712,2]
[390609312,1760104239069,-500.0,0.00016712,2]
[390609314,1760104239078,-500.0,0.00016712,2]
[390609316,1760104239087,-500.60525948,0.00016712,2]
[390609318,1760104239096,-500.0,0.00016712,2]
[390609320,1760104239105,-500.0,0.00016712,2]
[390609322,1760104239114,-500.0,0.00016712,2]
[390609324,1760104239124,-535.38,0.00016712,2]
[390609326,1760104239133,-500.0,0.00016712,2]
[390609328,1760104239142,-500.0,0.00016712,2]
[390609330,1760104239153,-515.55014223,0.00016712,2]
[390609331,1760104239162,-500.0,0.00016712,2]
[390609333,1760104239172,-3841.4637851,0.00016712,2]
[390609334,1760104239181,-3414.2450571,0.00016712,2]
[390609336,1760104239190,-199.55682446,0.00016712,2]
[390609337,1760104239199,-151.0,0.00016712,2]
[390609339,1760104239209,-151.0,0.00016712,2]
[390609340,1760104239218,-152.25446761,0.00016712,2]
[390609342,1760104239230,-151.0,0.00016712,2]
[390609343,1760104239239,-151.0,0.00016712,2]
[390609345,1760104239249,-151.0,0.00016712,2]
[390609347,1760104239258,-156.7887732,0.00016712,2]
[390609348,1760104239267,-261.13241851,0.00016712,2]
[390609350,1760104239276,-151.0,0.00016712,2]
[390609351,1760104239285,-151.0,0.00016712,2]
[390609353,1760104239294,-154.52963647,0.00016712,2]
[390609354,1760104239303,-152.12694981,0.00016712,2]
[390609356,1760104239312,-151.73338094,0.00016712,2]
[390609357,1760104239321,-942.0,0.00016712,2]
[390609359,1760104239330,-151.0,0.00016712,2]
[390609360,1760104239340,-190.36153996,0.00016712,2]
[390609362,1760104239349,-151.0,0.00016712,2]
[390609364,1760104239358,-500.0,0.00016712,2]
[390609365,1760104239368,-300.0,0.00016766,2]
[390609367,1760104239377,-300.0,0.00016766,2]
[390609368,1760104239386,-300.0,0.00016766,2]
[390609370,1760104239395,-300.0,0.00016766,2]
[390609371,1760104239404,-300.0,0.00016766,2]
[390609373,1760104239413,-300.0,0.00016766,2]
[390609375,1760104239422,-300.0,0.00016766,2]
[390609376,1760104239432,-300.0,0.00016766,2]
[390609378,1760104239441,-300.0,0.00016766,2]
[390609379,1760104239450,-300.0,0.00016766,2]
[390609381,1760104239460,-300.0,0.00016766,2]
[390609383,1760104239469,-300.0,0.00016766,2]
[390609384,1760104239481,-300.0,0.00016766,2]
[390609386,1760104239490,-300.0,0.00016766,2]
[390609388,1760104239500,-300.0,0.00016766,2]
[390609389,1760104239509,-600.0,0.00016766,2]
[390609390,1760104239523,-151.0001049,0.00016767,2]
[390609392,1760104239533,-151.0,0.00016767,2]
[390609394,1760104239543,-151.0,0.00016767,2]
[390609395,1760104239553,-151.0,0.00016767,2]
[390609397,1760104239562,-151.0,0.00016767,2]
[390609398,1760104239571,-151.0,0.00016767,2]
[390609400,1760104239580,-942.0,0.00016767,2]
[390609402,1760104239589,-151.0,0.00016767,2]
[390609403,1760104239599,-151.0,0.00016767,2]
[390609405,1760104239609,-789.5280749,0.000168,2]
[390609406,1760104239617,-199.38589367,0.00016822,2]
[390609408,1760104239627,-151.0,0.00016822,2]
[390609410,1760104239637,-151.0,0.00016822,2]
[390609411,1760104239646,-198.0,0.00016822,2]
[390609413,1760104239655,-198.0,0.00016822,2]
[390609414,1760104239664,-942.0,0.00016822,2]
[390609416,1760104239674,-151.0,0.00016822,2]
[390609418,1760104239683,-151.0,0.00016822,2]
[390609419,1760104239692,-160.0,0.00016858,2]
[390609421,1760104239702,-298.03512572,0.00016858,2]
[390609423,1760104239711,-160.0,0.00016858,2]
[390609424,1760104239724,-234.32063665,0.00016858,2]
[390609426,1760104239733,-1041.66666667,0.00016858,2]
[390609428,1760104239743,-160.0,0.00016858,2]
[390609429,1760104239752,-417.15472785,0.00016858,2]
[390609431,1760104239761,-151.0,0.00016876,2]
[390609433,1760104239771,-151.0,0.00016876,2]
[390609434,1760104239780,-942.0,0.00016876,2]
[390609436,1760104239789,-159.37404458,0.00016876,2]
[390609439,1760104239798,-153.63453505,0.00016876,2]
[390609440,1760104239807,-247.07721027,0.000169,2]
[390609442,1760104239817,-152.89660167,0.00016931,2]
[390609443,1760104239826,-192.40420351,0.00016931,2]
[390609445,1760104239835,-942.0,0.00016931,2]
[390609447,1760104239844,-500.0,0.00016985,2]
[390609448,1760104239853,-500.0,0.00016985,2]
[390609450,1760104239863,-500.0,0.00016985,2]
[390609453,1760104239872,-411.27984897,0.00016985,2]
[390609455,1760104239882,-500.0,0.00016985,2]
[390609457,1760104239891,-500.0,0.00016985,2]
[390609460,1760104239900,-500.0,0.00016985,2]
[390609462,1760104239910,-500.0,0.00016985,2]
[390609464,1760104239919,-251.27753143,0.00016985,2]
[390609466,1760104239927,-500.0,0.00016985,2]
[390609467,1760104239936,-500.0,0.00016985,2]
[390609469,1760104239945,-599.58780643,0.00016985,2]
[390609471,1760104239954,-500.0,0.00016985,2]
[390609472,1760104239963,-500.0,0.00016985,2]
[390609474,1760104239973,-500.0,0.00016985,2]
[390609475,1760104239982,-500.0,0.00016985,2]
[390609477,1760104239991,-500.0,0.00016985,2]
[390609479,1760104240001,-158.3242251,0.00016985,2]
[390609480,1760104240009,-500.0,0.00016985,2]
[390609482,1760104240019,-500.0,0.00016985,2]
[390609484,1760104240028,-362.01071484,0.00016985,2]
[390609485,1760104240037,-500.0,0.00016985,2]
[390609487,1760104240049,-500.0,0.00016985,2]
[390609488,1760104240059,-325.7773179,0.00016985,2]
[390609490,1760104240069,-500.0,0.00016985,2]
[390609492,1760104240078,-942.0,0.00016986,2]
[390609493,1760104240087,-500.0,0.00016986,2]
[390609495,1760104240096,-500.0,0.00016986,2]
[390609497,1760104240105,-500.0,0.00016986,2]
[390609498,1760104240114,-627.37,0.00016986,2]
[390609500,1760104240123,-500.0,0.00016986,2]
[390609502,1760104240132,-500.0,0.00016986,2]
[390609503,1760104240141,-500.0,0.00016986,2]
[390609505,1760104240150,-500.0,0.00016986,2]
[390609507,1760104240159,-693.9,0.00016986,2]
[390609508,1760104240168,-445.91834033,0.00016986,2]
[390609510,1760104240177,-500.0,0.00016986,2]
[390609511,1760104240186,-501.11596704,0.00016986,2]
[390609513,1760104240195,-500.0,0.00016986,2]
[390609515,1760104240204,-535.38,0.00016986,2]
[390609517,1760104240213,-500.0,0.00016986,2]
[390609518,1760104240223,-462.77192885,0.00016986,2]
[390609520,1760104240232,-500.0,0.00016986,2]
[390609521,1760104240240,-4018.9072966,0.00016999,2]
[390609523,1760104240249,-3426.1184118,0.00016999,2]
[390609524,1760104240258,-247.07721027,0.00017,2]
[390609526,1760104240268,-1020.09319151,0.00017,2]
[390609528,1760104240277,-7149.48281069,0.00017,3]
[390609529,1760104240286,-942.0,0.00017041,2]
[390609531,1760104240294,-622.60810848,0.00017042,2]
[390609533,1760104240304,-942.0,0.00017096,2]
[390609535,1760104240313,-18603.8837,0.00017142,2]
[390609536,1760104240322,-151.0,0.00017142,2]
[390609538,1760104240331,-1000.0,0.00017142,2]
[390609539,1760104240341,-1000.0,0.00017142,2]
[390609541,1760104240349,-1000.0,0.00017142,2]
[390609543,1760104240359,-1000.0,0.00017142,2]
[390609545,1760104240368,-228.84379298,0.00017142,2]
[390609546,1760104240377,-942.0,0.0001715,2]
[390609548,1760104240386,-389.4993093,0.00017173,2]
[390609549,1760104240395,-168.10077245,0.00017175,2]
[390609551,1760104240403,-247.07721027,0.000172,2]
[390609553,1760104240412,-1500.0,0.000172,2]
[390609555,1760104240421,-942.0,0.00017205,2]
[390609556,1760104240430,-593.39,0.0001725,3]
[390609558,1760104240439,-942.0,0.0001726,2]
[390609559,1760104240449,-500.0,0.0001726,2]
[390609561,1760104240458,-500.0,0.0001726,2]
[390609563,1760104240467,-500.0,0.0001726,2]
[390609564,1760104240477,-654.64,0.0001726,2]
[390609566,1760104240486,-627.37,0.0001726,2]
[390609568,1760104240495,-500.0,0.0001726,2]
[390609569,1760104240504,-500.0,0.0001726,2]
[390609571,1760104240514,-500.0,0.0001726,2]
[390609573,1760104240527,-500.0,0.0001726,2]
[390609575,1760104240536,-693.9,0.0001726,2]
[390609576,1760104240545,-500.0,0.0001726,2]
[390609578,1760104240555,-535.38,0.0001726,2]
[390609580,1760104240565,-500.0,0.0001726,2]
[390609581,1760104240574,-500.0,0.0001726,2]
[390609583,1760104240584,-942.0,0.00017315,2]
[390609586,1760104240595,-942.0,0.0001737,2]
[390609587,1760104240605,-189.6925741,0.00017385,2]
[390609589,1760104240614,-189.6925741,0.00017385,2]
[390609591,1760104240623,-189.6925741,0.00017385,2]
[390609592,1760104240633,-189.6925741,0.00017385,2]
[390609594,1760104240643,-189.6925741,0.00017385,2]
[390609596,1760104240652,-189.6925741,0.00017385,2]
[390609597,1760104240661,-189.6925741,0.00017385,2]
[390609599,1760104240670,-189.6925741,0.00017385,2]
[390609601,1760104240679,-385.2573306,0.00017385,2]
[390609602,1760104240688,-247.07721027,0.000174,2]
[390609604,1760104240697,-1500.00000001,0.000174,2]
[390609606,1760104240706,-942.0,0.00017424,2]
[390609607,1760104240715,-642.55581265,0.00017437,2]
[390609609,1760104240725,-500.0,0.00017437,2]
[390609611,1760104240736,-500.0,0.00017437,2]
[390609612,1760104240746,-372.10225396,0.00017437,2]
[390609614,1760104240755,-500.0,0.00017437,2]
[390609616,1760104240764,-500.0,0.00017437,2]
[390609617,1760104240774,-500.0,0.00017437,2]
[390609619,1760104240784,-500.0,0.00017437,2]
[390609621,1760104240794,-500.0,0.00017437,2]
[390609622,1760104240803,-500.0,0.00017437,2]
[390609624,1760104240813,-942.0,0.00017479,2]
[390609626,1760104240822,-500.0,0.0001752,2]
[390609627,1760104240831,-500.0,0.0001752,2]
[390609629,1760104240841,-500.0,0.0001752,2]
[390609631,1760104240851,-500.0,0.0001752,2]
[390609632,1760104240860,-500.0,0.00017529,2]
[390609634,1760104240869,-942.0,0.00017534,2]
[390609636,1760104240878,-500.0,0.00017534,2]
[390609637,1760104240887,-500.0,0.00017534,2]
[390609639,1760104240899,-500.0,0.00017534,2]
[390609641,1760104240908,-500.0,0.00017534,2]
[390609642,1760104240917,-654.64,0.00017534,2]
[390609644,1760104240926,-627.37,0.00017534,2]
[390609646,1760104240936,-426.40282211,0.00017534,2]
[390609647,1760104240945,-500.0,0.00017534,2]
[390609649,1760104240955,-426.65530301,0.00017534,2]
[390609651,1760104240964,-500.0,0.00017534,2]
[390609653,1760104240976,-693.9,0.00017534,2]
[390609654,1760104240985,-607.51055712,0.00017534,2]
[390609656,1760104240995,-535.38,0.00017534,2]
[390609658,1760104241004,-339.83552209,0.00017534,2]
[390609659,1760104241013,-247.39966697,0.00017534,2]
[390609661,1760104241023,-501.05544168,0.0001754,2]
[390609663,1760104241032,-500.0,0.0001754,2]
[390609664,1760104241042,-500.0,0.0001754,2]
[390609666,1760104241051,-165.24160476,0.0001754,2]
[390609668,1760104241060,-500.0,0.0001754,2]
[390609669,1760104241069,-500.0,0.0001754,2]
[390609671,1760104241078,-500.0,0.0001754,2]
[390609673,1760104241087,-500.0,0.0001754,2]
[390609675,1760104241096,-500.0,0.0001754,2]
[390609676,1760104241105,-627.54677909,0.0001754,2]
[390609678,1760104241114,-505.45386967,0.0001754,2]
[390609680,1760104241127,-214.21809975,0.0001754,2]
[390609681,1760104241138,-372.71606127,0.0001754,2]
[390609683,1760104241147,-500.0,0.00017561,2]
[390609685,1760104241156,-942.0,0.00017589,2]
[390609686,1760104241165,-247.07721027,0.000176,2]
[390609688,1760104241174,-2110.67602749,0.000176,2]
[390609690,1760104241183,-942.0,0.00017644,2]
[390609691,1760104241192,-980.0,0.00017644,2]
[390609693,1760104241202,-630.0,0.00017644,2]
[390609695,1760104241211,-2159.0,0.00017644,2]
[390609697,1760104241222,-150.0,0.00017644,2]
[390609698,1760104241231,-4682.0,0.00017668,2]
[390609700,1760104241241,-544.41282907,0.0001769,2]
[390609702,1760104241251,-942.0,0.00017698,2]
[390609703,1760104241260,-232.0,0.00017721,2]
[390609705,1760104241269,-622.60810845,0.00017732,2]
[390609707,1760104241278,-942.0,0.00017753,2]
[390609720,1760104241447,-434.4415373,0.00017773,2]
[390609722,1760104241460,-232.0,0.00017787,2]
[390609724,1760104241469,-171.27903185,0.00017807,2]
[390609725,1760104241479,-942.0,0.00017808,2]
[390609727,1760104241488,-500.0,0.00017808,2]
[390609729,1760104241497,-500.0,0.00017808,2]
[390609731,1760104241507,-500.0,0.00017808,2]
[390609732,1760104241516,-500.0,0.00017808,2]
[390609734,1760104241528,-654.64,0.00017808,2]
[390609736,1760104241538,-627.37,0.00017808,2]
[390609738,1760104241547,-500.0,0.00017808,2]
[390609739,1760104241557,-500.0,0.00017808,2]
[390609741,1760104241567,-693.9,0.00017808,2]
[390609743,1760104241576,-535.38,0.00017808,2]
[390609745,1760104241585,-942.0,0.00017863,2]
[390609746,1760104241595,-232.0,0.00017869,2]
[390609748,1760104241604,-4195.0,0.00017876,2]
[390609750,1760104241613,-600.0,0.00017885,2]
[390609751,1760104241622,-86877.54424593,0.000179,2]
[390609753,1760104241631,-500.0,0.000179,2]
[390609755,1760104241640,-942.0,0.00017917,2]
[390609757,1760104241650,-500.0,0.00017932,2]
[390609759,1760104241659,-500.0,0.00017932,2]
[390609761,1760104241668,-500.0,0.00017932,2]
[390609763,1760104241677,-500.0,0.00017932,2]
[390609765,1760104241686,-157.30324439,0.00017932,2]
[390609767,1760104241695,-500.0,0.00017932,2]
[390609769,1760104241704,-500.0,0.00017932,2]
[390609771,1760104241714,-500.0,0.00017932,2]
[390609773,1760104241722,-500.0,0.00017932,2]
[390609775,1760104241732,-500.0,0.00017932,2]
[390609777,1760104241741,-229.28641767,0.00017941,2]
[390609779,1760104241750,-420.0,0.0001796,2]
[390609781,1760104241760,-941.655,0.00017972,2]
[390609783,1760104241769,-170.57967988,0.00017972,2]
[390609785,1760104241778,-948.0,0.00017972,2]
[390609787,1760104241787,-1000.0,0.00017985,2]
[390609789,1760104241797,-500.86697932,0.00017985,2]
[390609791,1760104241806,-1000.0,0.00017985,2]
[390609793,1760104241815,-413.60686754,0.00017985,2]
[390609795,1760104241824,-467.37987447,0.00017985,2]
[390609797,1760104241833,-1000.0,0.00017985,2]
[390609798,1760104241842,-890.61339424,0.0001799,2]
[390609799,1760104241851,-200.0,0.00017999,2]
[390609800,1760104241860,-393.292049,0.00018,2]
[390609801,1760104241869,-202.13642157,0.00018,2]
[390609802,1760104241877,-1991.56682362,0.00018,2]
[390609803,1760104241886,-201.36920788,0.00018,2]
[390609804,1760104241896,-452.85128755,0.00018,2]
[390609805,1760104241905,-199.75,0.00018,2]
[390609806,1760104241914,-36327.96070906,0.00018,2]
[390609807,1760104241922,-21407.94503765,0.00018,2]
[390609808,1760104241932,-151.0,0.00018,2]
[390609809,1760104241940,-151.0,0.00018,2]
[390609810,1760104241949,-151.824686,0.00018,2]
[390609811,1760104241958,-232.0,0.00018,2]
[390609812,1760104241967,-232.0,0.00018005,2]
[390609813,1760104241976,-4461.11,0.00018017,2]
[390609814,1760104241985,-1000.0,0.00018068,2]
[390609815,1760104241994,-1000.0,0.00018068,2]
[390609816,1760104242002,-1000.0,0.00018068,2]
[390609817,1760104242011,-1000.0,0.00018068,2]
[390609818,1760104242019,-3928.4449145,0.00018071,2]
[390609819,1760104242028,-601.56279864,0.00018071,2]
[390609820,1760104242037,-1000.0,0.00018077,2]
[390609821,1760104242046,-200.0,0.00018081,2]
[390609822,1760104242054,-500.0,0.00018082,2]
[390609823,1760104242063,-500.0,0.00018082,2]
[390609824,1760104242072,-500.0,0.00018082,2]
[390609825,1760104242081,-504.50606578,0.00018082,2]
[390609826,1760104242090,-654.64,0.00018082,2]
[390609827,1760104242098,-627.37,0.00018082,2]
[390609828,1760104242107,-500.0,0.00018082,2]
[390609829,1760104242116,-500.0,0.00018082,2]
[390609830,1760104242125,-693.9,0.00018082,2]
[390609831,1760104242133,-558.66,0.00018082,2]
[390609832,1760104242142,-535.38,0.00018082,2]
[390609833,1760104242151,-501.25382688,0.00018088,2]
[390609834,1760104242160,-1003.02100515,0.00018088,2]
[390609835,1760104242168,-1000.0,0.00018088,2]
[390609836,1760104242177,-505.20166861,0.00018088,2]
[390609837,1760104242186,-1000.0,0.00018088,2]
[390609838,1760104242196,-1000.0,0.00018088,2]
[390609839,1760104242204,-1000.0,0.00018088,2]
[390609840,1760104242213,-238.53,0.000181,2]
[390609841,1760104242222,-500.0,0.00018174,2]
[390609842,1760104242233,-202.13642157,0.000182,2]
[390609843,1760104242242,-393.292049,0.000182,2]
[390609844,1760104242251,-1991.56682362,0.000182,2]
[390609845,1760104242260,-201.36920788,0.000182,2]
[390609846,1760104242269,-452.85128755,0.000182,2]
[390609847,1760104242278,-199.75,0.000182,2]
[390609848,1760104242287,-151.0,0.000182,2]
[390609849,1760104242296,-151.0,0.000182,2]
[390609850,1760104242305,-151.0,0.000182,2]
[390609851,1760104242314,-151.555572,0.000182,2]
[390609852,1760104242323,-151.0,0.000182,2]
[390609853,1760104242332,-151.0,0.000182,2]
[390609854,1760104242341,-151.506493,0.000182,2]
[390609855,1760104242350,-151.0,0.000182,2]
[390609856,1760104242359,-151.0,0.000182,2]
[390609857,1760104242369,-2583.0,0.0001824,2]
[390609859,1760104242378,-409.7560672,0.0001824,2]
[390609860,1760104242387,-297.8284942,0.0001824,2]
[390609861,1760104242396,-162.8446322,0.0001824,2]
[390609862,1760104242405,-232.0,0.00018253,2]
[390609863,1760104242414,-232.0,0.00018355,2]
[390609864,1760104242424,-514.06567756,0.00018356,2]
[390609866,1760104242433,-211.26743066,0.00018356,2]
[390609867,1760104242442,-500.0,0.00018356,2]
[390609868,1760104242451,-654.64,0.00018356,2]
[390609870,1760104242460,-627.37,0.00018356,2]
[390609871,1760104242470,-500.0,0.00018356,2]
[390609873,1760104242482,-500.0,0.00018356,2]
[390609875,1760104242491,-693.9,0.00018356,2]
[390609877,1760104242500,-558.66,0.00018356,2]
[390609879,1760104242509,-535.38,0.00018356,2]
[390609881,1760104242522,-151.0,0.00018356,2]
[390609883,1760104242530,-151.0,0.00018356,2]
[390609885,1760104242540,-151.0,0.00018356,2]
[390609887,1760104242549,-151.0,0.00018356,2]
[390609889,1760104242559,-151.0,0.00018356,2]
[390609891,1760104242569,-151.0,0.00018356,2]
[390609893,1760104242579,-151.0,0.00018356,2]
[390609895,1760104242588,-479.3837653,0.00018373,2]
[390609897,1760104242598,-151.0,0.00018376,2]
[390609899,1760104242607,-151.681857,0.00018376,2]
[390609901,1760104242616,-151.0,0.00018376,2]
[390609903,1760104242625,-188.41805,0.00018376,2]
[390609905,1760104242635,-188.41805,0.00018376,2]
[390609907,1760104242644,-188.41805,0.00018376,2]
[390609909,1760104242653,-188.41805,0.00018376,2]
[390609911,1760104242662,-151.0,0.00018376,2]
[390609913,1760104242671,-151.0,0.00018376,2]
[390609915,1760104242680,-2583.0,0.00018376,2]
[390609917,1760104242689,-151.0,0.00018393,2]
[390609919,1760104242698,-151.0,0.00018393,2]
[390609921,1760104242707,-232.792572,0.00018393,2]
[390609923,1760104242716,-232.792572,0.00018393,2]
[390609925,1760104242727,-232.792572,0.00018393,2]
[390609927,1760104242736,-151.0,0.00018393,2]
[390609929,1760104242745,-232.792572,0.00018393,2]
[390609931,1760104242754,-151.0,0.00018393,2]
[390609933,1760104242763,-151.0,0.00018393,2]
[390609935,1760104242773,-151.0,0.00018393,2]
[390609937,1760104242782,-151.0,0.00018393,2]
[390609939,1760104242791,-151.0,0.00018393,2]
[390609941,1760104242800,-151.0,0.00018393,2]
[390609943,1760104242810,-151.0,0.00018393,2]
[390609946,1760104242819,-393.292049,0.000184,2]
[390609949,1760104242829,-1991.56682362,0.000184,2]
[390609951,1760104242838,-201.36920788,0.000184,2]
[390609953,1760104242846,-452.85128755,0.000184,2]
[390609955,1760104242855,-2583.0,0.0001841,2]
[390609957,1760104242864,-622.60810845,0.00018421,2]
[390609959,1760104242874,-720.0,0.00018442,2]
[390609961,1760104242883,-500.0,0.00018448,2]
[390609963,1760104242893,-2583.0,0.0001846,2]
[390609965,1760104242902,-505.09056079,0.0001848,2]
[390609967,1760104242911,-1000.0,0.0001848,2]
[390609970,1760104242920,-500.0,0.0001848,2]
[390609972,1760104242929,-500.95947091,0.0001848,2]